bitfinex/quotes_ETHUSD_20250730
["timestamp","ask_amount","ask_price","bid_price","bid_amount"]
[1753849656741,0.9198,3826.4,3826.3,3.959]
[1753849657595,0.002,3826.4,3826.3,6.57249083]
[1753849657797,0.002,3826.4,3826.3,7.50819083]
[1753849659346,0.002,3826.4,3826.3,11.15710509]
[1753849660471,0.002,3826.4,3826.3,9.57249083]
[1753849660641,0.4598,3826.4,3826.3,9.57249083]
[1753849661496,0.002,3826.4,3826.3,9.57249083]
[1753849661749,0.002,3826.4,3826.3,5.61349083]
[1753849661946,0.4598,3826.4,3826.3,9.57249083]
[1753849664883,0.002,3826.4,3826.3,5.61349083]
[1753849665066,0.9198,3826.4,3826.3,9.57249083]
[1753849665729,0.9198,3826.4,3826.3,6.57249083]
[1753849665926,0.9198,3826.4,3826.3,2.61349083]
[1753849666141,0.9198,3826.4,3826.3,6.57249083]
[1753849668066,0.4598,3826.4,3826.3,6.57249083]
[1753849668757,0.9198,3826.4,3826.3,6.57249083]
[1753849669931,1.6983,3826.4,3826.3,8.269]
[1753849671130,1.6983,3826.4,3826.3,4.31]
[1753849671359,1.6983,3826.4,3826.3,8.269]
[1753849672046,1.6983,3826.4,3826.3,4.31]
[1753849672244,1.6983,3826.4,3826.2,0.1304]
[1753849672448,0.95073,3826.4,3826.3,3.959]
[1753849672655,0.7805,3826.4,3825.9,4.311]
[1753849672858,3.09891426,3826.3,3826.0,3.959]
[1753849673062,1.2478,3826.2,3826.0,3.959]
[1753849673264,1.49706082,3826.1,3826.0,3.959]
[1753849673568,2.41486082,3826.1,3826.0,3.959]
[1753849677270,2.41486082,3826.1,3825.9,0.001]
[1753849677479,0.7878,3826.1,3826.0,3.959]
[1753849678053,1.7056,3826.1,3826.0,3.959]
[1753849678950,1.7056,3826.1,3825.9,0.001]
[1753849679274,0.7878,3826.1,3825.9,0.001]
[1753849679473,0.7878,3826.1,3826.0,3.959]
[1753849679871,1.7056,3826.1,3826.0,3.959]
[1753849680242,1.7034,3826.1,3826.0,3.959]
[1753849680432,0.7542,3826.4,3826.0,3.959]
[1753849680638,0.4507,3826.3,3826.0,4.0894]
[1753849680835,0.4578,3826.2,3826.0,4.0894]
[1753849681273,0.4507,3826.1,3826.0,4.0894]
[1753849683476,0.9085,3826.1,3826.0,4.0894]
[1753849684251,0.4507,3826.1,3826.0,4.0894]
[1753849684840,0.9085,3826.1,3826.0,4.0894]
[1753849685855,1.7354,3826.1,3826.0,3.959]
[1753849689706,1.92218,3826.1,3826.0,3.959]
[1753849692253,1.7354,3826.1,3826.0,3.959]
[1753849696709,4.34902745,3826.1,3826.0,3.959]
[1753849696913,3.44519576,3826.0,3825.9,0.001]
[1753849697222,4.35369576,3826.0,3825.9,0.001]
[1753849697411,8.37335951,3826.0,3825.9,0.001]
[1753849699434,8.56957946,3826.0,3825.9,0.001]
[1753849714367,3.94060072,3825.7,3825.6,0.001]
[1753849714562,3.16396905,3825.6,3825.4,0.001]
[1753849714779,12.29106571,3825.5,3825.4,0.001]
[1753849715265,6.93524239,3825.2,3824.1,0.019473]
[1753849715419,3.86991426,3824.7,3824.1,0.019473]
[1753849715613,14.31688984,3824.7,3824.1,0.019473]
[1753849715868,15.22898984,3824.7,3824.1,0.019473]
[1753849716075,15.77898984,3824.7,3824.1,0.019473]
[1753849716218,9.51384025,3824.2,3824.1,0.019473]
[1753849716567,14.81710801,3824.2,3824.1,0.019473]
[1753849716765,15.72920801,3824.2,3824.1,0.019473]
[1753849720664,15.29900801,3824.2,3824.1,0.019473]
[1753849720870,15.72920801,3824.2,3824.1,0.019473]
[1753849721272,8.24218202,3824.2,3824.1,0.019473]
[1753849721429,7.0904,3824.2,3824.1,0.019473]
[1753849721630,3.1304,3824.2,3824.1,0.447573]
[1753849721852,3.1304,3824.2,3824.1,0.942173]
[1753849721853,0.1304,3824.2,3824.1,0.942173]
[1753849722368,0.1304,3824.2,3824.1,0.019473]
[1753849722934,0.1304,3824.2,3824.1,0.514073]
[1753849723767,0.1304,3824.2,3824.1,0.019473]
[1753849724274,8.73473183,3824.2,3824.1,0.019473]
[1753849724436,7.02412599,3824.2,3824.1,0.019473]
[1753849724637,7.45432599,3824.2,3824.1,0.019473]
[1753849725465,11.41532599,3824.2,3824.1,0.019473]
[1753849727343,7.45432599,3824.2,3824.1,0.019473]
[1753849727563,8.77113048,3824.2,3824.1,0.019473]
[1753849727775,12.30193048,3824.2,3824.1,0.019473]
[1753849727979,7.0914,3824.2,3824.1,0.019473]
[1753849728873,3.1304,3824.2,3824.1,0.019473]
[1753849729074,7.0914,3824.2,3824.1,0.019473]
[1753849729647,9.70632599,3824.2,3824.1,0.019473]
[1753849730043,10.61842599,3824.2,3824.1,0.019473]
[1753849730243,12.33196945,3824.2,3824.1,0.019473]
[1753849731377,11.90176945,3824.2,3824.1,0.019473]
[1753849732280,8.80494346,3824.2,3824.1,0.019473]
[1753849732580,7.0914,3824.2,3824.1,0.019473]
[1753849732764,3.1304,3824.2,3824.1,0.019473]
[1753849733284,0.1304,3824.2,3824.1,0.019473]
[1753849733486,4.0914,3824.2,3824.1,0.942173]
[1753849734992,0.1304,3824.2,3824.1,0.942173]
[1753849736695,0.1304,3824.2,3824.1,0.019473]
[1753849736998,5.22825599,3824.2,3824.1,0.019473]
[1753849738066,4.79805599,3824.2,3824.1,0.019473]
[1753849738370,5.22825599,3824.2,3824.1,0.019473]
[1753849738884,8.22825599,3824.2,3824.1,0.019473]
[1753849739474,7.31615599,3824.2,3824.1,0.019473]
[1753849739680,7.79805599,3824.2,3824.1,0.019473]
[1753849740201,4.70123,3824.2,3824.1,0.019473]
[1753849740406,7.0914,3824.2,3824.1,0.019473]
[1753849740780,3.1304,3824.2,3824.1,0.019473]
[1753849740983,0.1304,3824.2,3824.1,0.942673]
[1753849741295,0.1304,3824.6,3824.1,0.942673]
[1753849741614,0.1304,3824.6,3824.2,0.9232]
[1753849742106,0.1304,3824.6,3824.1,0.019473]
[1753849742309,0.1304,3824.6,3824.2,0.9232]
[1753849742614,0.1304,3824.6,3824.1,0.019473]
[1753849742814,0.4723,3824.5,3824.1,0.019473]
[1753849743117,0.1304,3824.2,3824.1,0.019473]
[1753849743489,0.6027,3824.2,3824.1,0.019473]
[1753849743701,0.1304,3824.2,3824.1,0.019473]
[1753849744213,3.0,3824.5,3824.1,0.942673]
[1753849744395,0.1304,3824.3,3824.1,0.942673]
[1753849744777,0.1304,3824.3,3824.2,0.9232]
[1753849745123,0.1304,3824.5,3824.2,0.9232]
[1753849745291,0.1304,3824.5,3824.3,0.9232]
[1753849745616,0.1304,3824.5,3824.4,0.4626]
[1753849745796,0.1304,3824.5,3824.3,0.4606]
[1753849745991,0.1304,3824.5,3824.1,0.482073]
[1753849746416,0.1304,3824.5,3824.1,0.942673]
[1753849746613,0.1304,3824.5,3824.2,0.4626]
[1753849746819,0.1304,3824.5,3824.2,0.9232]
[1753849748419,0.1304,3824.5,3824.1,0.019473]
[1753849748789,0.1304,3824.5,3824.1,0.942673]
[1753849749799,0.1304,3824.5,3824.1,0.019473]
[1753849750203,0.6027,3824.5,3824.1,0.019473]
[1753849750408,6.65801871,3824.4,3824.1,0.019473]
[1753849750748,0.1304,3824.2,3824.1,0.019473]
[1753849751103,1.0747,3824.2,3824.1,0.019473]
[1753849751730,0.6027,3824.2,3824.1,0.019473]
[1753849753014,0.1304,3824.2,3824.1,0.019473]
[1753849754195,1.0747,3824.2,3824.1,0.019473]
[1753849754498,1.52324816,3824.2,3824.1,0.019473]
[1753849754703,4.13817415,3824.2,3824.1,0.019473]
[1753849756432,4.61017415,3824.2,3824.1,0.019473]
[1753849756596,15.91008841,3824.2,3824.1,0.019473]
[1753849766741,16.04048841,3824.2,3824.1,0.019473]
[1753849766946,15.49048841,3824.2,3824.1,0.019473]
[1753849771151,16.04048841,3824.2,3824.1,0.019473]
[1753849785048,40.03805059,3823.6,3823.5,0.001]
[1753849785232,44.00005059,3823.6,3823.5,0.001]
[1753849785433,45.04095059,3823.6,3823.5,0.001]
[1753849787276,45.23771351,3823.6,3823.5,0.001]
[1753849788944,15.23771351,3823.6,3823.5,0.001]
[1753849789263,16.57941006,3823.6,3823.5,0.001]
[1753849790331,16.11251006,3823.6,3823.5,0.001]
[1753849790534,15.33971006,3823.6,3823.5,0.001]
[1753849791859,15.80661006,3823.6,3823.5,0.001]
[1753849792075,16.25021006,3823.6,3823.5,0.001]
[1753849792577,12.28721006,3823.6,3823.5,0.001]
[1753849792784,16.25021006,3823.6,3823.5,0.001]
[1753849795275,17.05181006,3823.6,3823.5,0.001]
[1753849796333,47.05181006,3823.6,3823.5,0.001]
[1753849797342,47.15665906,3823.6,3823.5,0.001]
[1753849797769,47.15665906,3823.6,3823.5,1e-08]
[1753849800989,9.26452422,3823.2,3823.1,0.041]
[1753849801189,13.35792422,3823.2,3823.1,0.041]
[1753849801353,14.62332422,3823.2,3823.1,0.041]
[1753849803389,14.14672422,3823.2,3823.1,0.041]
[1753849803976,14.62332422,3823.2,3823.1,0.041]
[1753849804148,16.65074549,3823.2,3823.1,0.041]
[1753849804353,16.17414549,3823.2,3823.1,0.041]
[1753849804564,15.38534549,3823.2,3823.1,0.041]
[1753849804767,14.83534549,3823.2,3823.1,0.9689]
[1753849804993,10.87234549,3823.2,3823.1,0.041]
[1753849805189,9.70900996,3823.2,3823.1,0.9689]
[1753849805556,5.74600996,3823.2,3823.1,0.041]
[1753849805880,9.70900996,3823.2,3823.1,0.041]
[1753849806263,11.29901102,3823.2,3823.1,0.041]
[1753849806465,12.32561102,3823.2,3823.1,0.041]
[1753849810991,11.84901102,3823.2,3823.1,0.041]
[1753849812393,7.88601102,3823.2,3823.1,0.041]
[1753849812692,12.32561102,3823.2,3823.1,0.041]
[1753849814198,11.84901102,3823.2,3823.1,0.041]
[1753849814898,12.79071102,3823.2,3823.1,0.041]
[1753849815280,12.89557302,3823.2,3823.1,0.041]
[1753849816100,8.93257302,3823.2,3823.1,0.041]
[1753849816260,11.84901102,3823.2,3823.1,0.041]
[1753849816666,12.32561102,3823.2,3823.1,0.041]
[1753849816901,12.79071102,3823.2,3823.1,0.041]
[1753849819303,14.94792528,3823.2,3823.1,0.041]
[1753849820716,2.61581521,3822.9,3822.8,0.001]
[1753849820878,15.0898466,3822.9,3822.8,0.001]
[1753849821201,16.1619466,3822.9,3822.8,0.001]
[1753849821907,17.5222466,3822.9,3822.8,0.001]
[1753849824914,17.5222466,3822.9,3822.1,0.04]
[1753849824915,6.09891426,3822.2,3822.1,0.04]
[1753849825100,13.6819209,3822.2,3822.1,0.04]
[1753849825493,14.2319209,3822.2,3822.1,0.04]
[1753849825836,14.7085209,3822.2,3822.1,0.04]
[1753849825969,15.30750457,3822.2,3822.1,0.04]
[1753849826485,2.61670504,3821.6,3821.5,0.4862]
[1753849826686,6.71190504,3821.6,3821.5,0.9179]
[1753849826993,6.71190504,3821.6,3821.3,0.4317]
[1753849827194,6.71190504,3821.6,3821.1,0.04]
[1753849827195,2.61697895,3821.2,3821.1,0.04]
[1753849827397,2.61697895,3821.2,3821.1,0.4717]
[1753849827696,2.74817895,3821.2,3821.1,0.04]
[1753849827871,5.74817895,3821.2,3821.1,0.04]
[1753849828071,7.33863247,3821.2,3821.1,0.04]
[1753849828608,7.95681418,3821.2,3821.1,0.04]
[1753849828812,8.89851418,3821.2,3821.1,0.04]
[1753849830218,42.76772844,3821.2,3821.1,0.04]
[1753849830784,12.76772844,3821.2,3821.1,0.04]
[1753849831111,16.73872844,3821.2,3821.1,0.04]
[1753849833809,12.76772844,3821.2,3821.1,0.04]
[1753849834022,16.73772844,3821.2,3821.1,0.04]
[1753849834732,12.76772844,3821.2,3821.1,0.04]
[1753849834891,16.27262844,3821.2,3821.1,0.04]
[1753849836008,11.37681418,3821.2,3821.1,0.04]
[1753849836630,11.37781418,3821.2,3821.1,0.04]
[1753849837527,12.29111418,3821.2,3821.1,0.04]
[1753849837727,11.92781418,3821.2,3821.1,0.04]
[1753849838028,12.84111418,3821.2,3821.1,0.04]
[1753849838648,12.97231418,3821.2,3821.1,0.04]
[1753849838934,13.76651418,3821.2,3821.1,0.04]
[1753849840896,13.76651418,3821.2,3821.1,0.041]
[1753849843538,8.08801418,3821.2,3821.1,0.041]
[1753849844045,12.05701418,3821.2,3821.1,0.041]
[1753849844200,12.53201418,3821.2,3821.1,0.041]
[1753849846046,12.97031418,3821.2,3821.1,0.041]
[1753849847259,12.05701418,3821.2,3821.1,0.041]
[1753849847945,12.53201418,3821.2,3821.1,0.041]
[1753849848308,12.97031418,3821.2,3821.1,0.041]
[1753849849548,13.74621418,3821.2,3821.1,1e-08]
[1753849849756,6.94315293,3820.8,3820.7,0.001]
[1753849849911,15.26609913,3820.8,3820.7,0.001]
[1753849850106,15.87229913,3820.8,3820.7,0.001]
[1753849852578,15.87229913,3820.8,3820.1,0.9686]
[1753849852579,3.16766399,3820.2,3820.1,0.04]
[1753849852881,13.55134465,3820.2,3820.1,0.04]
[1753849853068,13.68254465,3820.2,3820.1,0.04]
[1753849855772,14.15754465,3820.2,3820.1,0.04]
[1753849856644,14.59584465,3820.2,3820.1,0.04]
[1753849857295,2.61800664,3819.7,3819.6,0.4928]
[1753849857446,9.9860073,3819.7,3819.6,0.4928]
[1753849858169,7.36800066,3819.7,3819.6,0.4928]
[1753849858349,9.72420664,3819.7,3819.6,0.9286]
[1753849858820,7.1062,3819.7,3819.6,0.9286]
[1753849859318,9.72420664,3819.7,3819.6,0.9286]
[1753849859452,9.72420664,3819.7,3819.6,0.8786]
[1753849860563,9.72420664,3819.7,3819.6,0.4451]
[1753849860564,4.1062,3819.7,3819.6,0.4451]
[1753849860762,7.1062,3819.7,3819.6,0.4451]
[1753849861305,9.72420664,3819.7,3819.6,0.4451]
[1753849861504,9.72420664,3819.7,3819.6,0.8879]
[1753849861787,7.1062,3819.7,3819.6,0.8879]
[1753849861988,3.1312,3819.7,3819.6,0.8879]
[1753849862283,0.1312,3819.9,3819.6,0.8879]
[1753849862487,0.1312,3819.9,3819.4,2.61817919]
[1753849862650,0.1312,3819.9,3819.7,0.8879]
[1753849862846,3.0,3820.1,3819.8,0.8879]
[1753849863081,0.1312,3820.0,3819.5,2.61812038]
[1753849863282,0.1312,3820.0,3819.9,0.8879]
[1753849868569,0.1312,3820.1,3819.9,0.8879]
[1753849868892,0.1312,3820.1,3820.0,0.8879]
[1753849869253,0.1312,3820.1,3819.7,0.8879]
[1753849869451,0.1312,3819.9,3819.4,0.1312]
[1753849869655,2.6182202,3819.4,3819.1,0.04]
[1753849870022,3.973,3819.9,3819.1,0.04]
[1753849870023,2.74949708,3819.3,3819.1,0.04]
[1753849870159,2.61834939,3819.2,3819.1,0.04]
[1753849870468,7.05514939,3819.2,3819.1,0.04]
[1753849870857,7.24751152,3819.2,3819.1,0.04]
[1753849871158,4.62916213,3819.2,3819.1,0.04]
[1753849871896,4.16836213,3819.2,3819.1,0.04]
[1753849872093,0.19236213,3819.2,3819.1,0.04]
[1753849872302,3.976,3819.2,3819.1,0.04]
[1753849872601,6.7255024,3819.3,3819.1,0.04]
[1753849872985,0.1312,3819.3,3819.1,0.04]
[1753849873498,0.1312,3819.3,3819.2,0.8879]
[1753849873680,3.0,3819.6,3819.2,0.8879]
[1753849873879,0.1312,3819.4,3819.2,0.8879]
[1753849874054,0.1312,3819.4,3819.3,0.8879]
[1753849877203,0.1312,3819.4,3819.1,0.4828]
[1753849877404,0.4608,3819.3,3819.1,0.04]
[1753849877581,0.1312,3819.2,3819.1,0.04]
[1753849877910,0.592,3819.2,3819.1,0.04]
[1753849878911,0.1312,3819.2,3819.1,0.04]
[1753849880805,2.74954939,3819.2,3819.1,0.04]
[1753849881008,4.65460433,3819.2,3819.1,0.04]
[1753849882327,5.61874908,3818.7,3818.1,0.04]
[1753849882524,5.61874908,3818.7,3818.2,0.4428]
[1753849882525,3.0,3818.7,3818.2,0.4428]
[1753849882886,3.0,3818.7,3818.2,0.8879]
[1753849883523,3.0,3818.7,3818.1,0.04]
[1753849883524,3.0793554,3818.9,3818.3,0.8879]
[1753849883700,4.4408,3818.9,3818.3,0.8879]
[1753849884100,3.0,3818.8,3818.3,0.8879]
[1753849884488,6.07942742,3818.8,3818.3,0.4451]
[1753849884686,3.4608,3818.8,3818.3,0.4451]
[1753849886127,6.07943146,3818.8,3818.3,0.4451]
[1753849886302,6.07943146,3818.8,3818.1,0.4828]
[1753849886624,6.07943146,3818.8,3818.1,0.9279]
[1753849886924,2.61876277,3818.6,3818.1,0.4851]
[1753849887114,2.61876277,3818.6,3818.1,0.04]
[1753849887511,0.4608,3818.5,3818.1,0.04]
[1753849887726,2.618934,3818.4,3818.1,0.04]
[1753849888105,0.4608,3818.3,3818.1,0.04]
[1753849888486,0.4608,3818.2,3818.1,0.04]
[1753849888689,0.9324,3818.4,3818.1,0.04]
[1753849889196,0.4608,3818.3,3818.1,0.04]
[1753849890810,3.09051045,3818.4,3818.1,0.04]
[1753849891012,0.4971,3818.2,3818.1,0.04]
[1753849891860,3.55683514,3818.2,3818.1,0.04]
[1753849892213,3.68803514,3818.2,3818.1,0.04]
[1753849892443,4.31872846,3818.2,3818.1,0.04]
[1753849893020,1.69969332,3818.2,3818.1,0.04]
[1753849893226,4.31872846,3818.2,3818.1,0.04]
[1753849894658,10.41764272,3818.2,3818.1,0.04]
[1753849896012,11.29772846,3818.2,3818.1,0.04]
[1753849898755,7.31872846,3818.2,3818.1,0.04]
[1753849899066,11.29672846,3818.2,3818.1,0.04]
[1753849902253,11.84672846,3818.2,3818.1,0.04]
[1753849902574,11.84672846,3818.2,3817.7,0.001]
[1753849902575,5.61930955,3817.8,3817.7,0.001]
[1753849902874,14.15892381,3817.8,3817.7,0.001]
[1753849903175,3.40022126,3817.2,3817.1,0.04]
[1753849903494,13.60933552,3817.2,3817.1,0.04]
[1753849903761,16.72003227,3817.2,3817.1,0.04]
[1753849904261,13.14209299,3817.2,3817.1,0.04]
[1753849904469,12.36159299,3817.2,3817.1,0.04]
[1753849904636,13.66169299,3817.2,3817.1,0.04]
[1753849904838,13.66869299,3817.2,3817.1,0.04]
[1753849905034,5.23957978,3817.1,3816.1,0.04]
[1753849905235,3.0,3816.3,3816.1,0.04]
[1753849905444,3.989,3816.2,3816.1,0.04]
[1753849906259,3.988,3816.2,3816.1,0.04]
[1753849908165,3.988,3816.2,3816.1,0.9223]
[1753849908588,3.988,3816.2,3816.1,0.4795]
[1753849908791,3.988,3816.2,3816.1,0.04]
[1753849909168,3.988,3816.2,3816.1,0.4795]
[1753849909490,3.4971,3816.7,3816.1,0.9223]
[1753849909695,3.0,3816.5,3816.1,0.9223]
[1753849909862,3.988,3816.4,3816.1,0.04]
[1753849910858,1.93874658,3817.0,3816.3,0.04]
[1753849910859,3.0,3816.9,3816.3,0.04]
[1753849911059,3.4971,3817.1,3816.3,0.4828]
[1753849911260,5.61994703,3816.9,3816.3,0.4828]
[1753849911697,3.0,3816.7,3816.3,0.04]
[1753849911861,6.988,3816.6,3816.3,0.04]
[1753849912257,9.6081476,3816.6,3816.3,0.04]
[1753849912591,3.11734007,3816.5,3816.1,0.04]
[1753849912997,3.988,3816.4,3816.1,0.04]
[1753849913174,6.60827439,3816.4,3816.1,0.04]
[1753849913603,4.4851,3816.4,3816.1,0.04]
[1753849914060,0.1312,3816.2,3816.1,0.04]
[1753849915072,5.058,3816.2,3816.1,0.04]
[1753849915461,4.6173,3816.2,3816.1,0.04]
[1753849916817,11.00553507,3816.2,3816.1,0.04]
[1753849917111,11.44623507,3816.2,3816.1,0.04]
[1753849917402,12.27483507,3816.2,3816.1,0.04]
[1753849919000,12.27883507,3816.2,3816.1,0.04]
[1753849919866,12.82883507,3816.2,3816.1,0.04]
[1753849920184,8.28583507,3816.2,3816.1,0.04]
[1753849920376,12.27883507,3816.2,3816.1,0.04]
[1753849920805,7.01653507,3816.2,3816.1,0.04]
[1753849921103,11.45853507,3816.2,3816.1,0.04]
[1753849921463,12.00853507,3816.2,3816.1,0.04]
[1753849921865,12.90276716,3816.2,3816.1,0.04]
[1753849922975,5.62054507,3816.0,3815.9,0.001]
[1753849923181,15.00988198,3816.0,3815.9,0.001]
[1753849923392,15.93518198,3816.0,3815.9,0.001]
[1753849926118,11.93818198,3816.0,3815.9,0.001]
[1753849926287,16.48418198,3816.0,3815.9,0.001]
[1753849927008,8.94126772,3816.0,3815.9,0.001]
[1753849927174,9.74774507,3816.0,3815.9,0.001]
[1753849927826,7.1272,3816.0,3815.9,0.001]
[1753849927991,7.1272,3816.0,3815.9,0.9334]
[1753849928184,7.1272,3816.0,3815.9,0.041]
[1753849928526,9.74774507,3816.0,3815.9,0.001]
[1753849928726,12.25446507,3816.0,3815.9,0.001]
[1753849928887,12.70246507,3816.0,3815.9,0.001]
[1753849929288,12.70246507,3816.0,3815.9,1e-08]
[1753849931211,12.70646507,3816.0,3815.9,1e-08]
[1753849931427,12.25846507,3816.0,3815.9,1e-08]
[1753849932030,6.46446507,3816.0,3815.9,1e-08]
[1753849932235,9.75174507,3816.0,3815.9,1e-08]
[1753849932591,0.1312,3816.0,3815.9,1e-08]
[1753849932804,4.1322,3816.0,3815.9,0.93240001]
[1753849933023,7.1322,3816.0,3815.9,0.04000001]
[1753849933408,9.75274507,3816.0,3815.9,1e-08]
[1753849933739,12.86778607,3816.0,3815.9,1e-08]
[1753849934798,12.42278607,3816.0,3815.9,1e-08]
[1753849935394,12.87078607,3816.0,3815.9,1e-08]
[1753849937231,11.87178607,3816.0,3815.9,1e-08]
[1753849937421,11.39448607,3816.0,3815.9,1e-08]
[1753849937914,11.87178607,3816.0,3815.9,1e-08]
[1753849938121,12.31978607,3816.0,3815.9,1e-08]
[1753849938505,11.39448607,3816.0,3815.9,1e-08]
[1753849938706,11.39348607,3816.0,3815.9,1e-08]
[1753849939098,11.87078607,3816.0,3815.9,1e-08]
[1753849940316,11.39348607,3816.0,3815.9,1e-08]
[1753849940529,15.41770033,3816.0,3815.9,1e-08]
[1753849940921,12.31878607,3816.0,3815.9,1e-08]
[1753849941930,8.31678607,3816.0,3815.9,1e-08]
[1753849942134,12.31878607,3816.0,3815.9,1e-08]
[1753849945732,11.39148607,3816.0,3815.9,1e-08]
[1753849945941,9.75174507,3816.0,3815.9,1e-08]
[1753849947498,10.22904507,3816.0,3815.9,1e-08]
[1753849950401,10.67624507,3816.0,3815.9,1e-08]
[1753849951006,10.22904507,3816.0,3815.9,1e-08]
[1753849951209,10.67624507,3816.0,3815.9,1e-08]
[1753849951534,12.39189607,3816.0,3815.9,1e-08]
[1753849953165,13.70069607,3816.0,3815.9,1e-08]
[1753849956252,13.25049607,3816.0,3815.9,1e-08]
[1753849956937,13.69769607,3816.0,3815.9,1e-08]
[1753849957115,9.15069607,3816.0,3815.9,1e-08]
[1753849957308,13.24949607,3816.0,3815.9,1e-08]
[1753849957862,12.69949607,3816.0,3815.9,1e-08]
[1753849958249,13.69669607,3816.0,3815.9,1e-08]
[1753849959849,9.70069607,3816.0,3815.9,1e-08]
[1753849960163,13.69769607,3816.0,3815.9,1e-08]
[1753849960762,9.25349607,3816.0,3815.9,1e-08]
[1753849960966,7.46739607,3816.0,3815.9,1e-08]
[1753849961137,2.75174507,3816.0,3815.9,1e-08]
[1753849961467,9.74874507,3816.0,3815.9,1e-08]
[1753849962456,5.75174507,3816.0,3815.9,1e-08]
[1753849962665,9.74874507,3816.0,3815.9,1e-08]
[1753849964349,10.98466464,3816.0,3815.9,1e-08]
[1753849964545,11.45606464,3816.0,3815.9,1e-08]
[1753849965352,11.90326464,3816.0,3815.9,1e-08]
[1753849965747,7.90726464,3816.0,3815.9,1e-08]
[1753849965951,11.90326464,3816.0,3815.9,1e-08]
[1753849966250,13.20986464,3816.0,3815.9,1e-08]
[1753849967778,13.20986464,3816.0,3815.1,0.04]
[1753849968077,5.62109456,3815.2,3815.1,0.04]
[1753849968372,9.74729456,3815.2,3815.1,0.04]
[1753849968754,10.41492882,3815.2,3815.1,0.04]
[1753849971679,9.94352882,3815.2,3815.1,0.04]
[1753849972250,6.41992882,3815.2,3815.1,0.04]
[1753849972454,9.94252882,3815.2,3815.1,0.04]
[1753849972657,11.98979478,3815.2,3815.1,0.04]
[1753849973290,12.43699478,3815.2,3815.1,0.04]
[1753849973688,10.69979478,3815.2,3815.1,0.04]
[1753849973990,6.70579478,3815.2,3815.1,0.04]
[1753849974165,10.70079478,3815.2,3815.1,0.04]
[1753849974564,11.17219478,3815.2,3815.1,0.04]
[1753849975451,11.17119478,3815.2,3815.1,0.04]
[1753849975652,11.61839478,3815.2,3815.1,0.04]
[1753849979667,11.17119478,3815.2,3815.1,0.04]
[1753849979870,7.17719478,3815.2,3815.1,0.04]
[1753849980104,3.32743426,3815.2,3815.1,0.9195]
[1753849980287,3.32743426,3815.2,3815.1,0.04]
[1753849980491,3.32743426,3815.2,3815.1,0.9571]
[1753849980492,7.31943426,3815.2,3815.1,0.9571]
[1753849980691,7.31943426,3815.2,3815.1,0.04]
[1753849980901,9.94052882,3815.2,3815.1,0.04]
[1753849981207,11.24311774,3815.2,3815.1,0.04]
[1753849982405,5.94852882,3815.2,3815.1,0.04]
[1753849982604,9.94152882,3815.2,3815.1,0.04]
[1753849984494,10.40592882,3815.2,3815.1,0.04]
[1753849985016,6.41292882,3815.2,3815.1,0.04]
[1753849985211,10.40492882,3815.2,3815.1,0.04]
[1753849985708,12.14740058,3815.2,3815.1,0.04]
[1753849985908,12.61520058,3815.2,3815.1,0.04]
[1753849986320,12.14740058,3815.2,3815.1,0.04]
[1753849988520,11.68300058,3815.2,3815.1,0.04]
[1753849988851,12.61520058,3815.2,3815.1,0.04]
[1753849989048,12.14740058,3815.2,3815.1,0.04]
[1753849990209,2.6213694,3814.8,3814.7,0.001]
[1753849990388,44.05278366,3814.8,3814.7,0.001]
[1753849990591,44.98498366,3814.8,3814.7,0.001]
[1753849992010,14.98498366,3814.8,3814.7,0.001]
[1753849993093,10.99498366,3814.8,3814.7,0.001]
[1753849993290,12.53996124,3814.8,3814.7,0.001]
[1753849993528,16.53296124,3814.8,3814.7,0.001]
[1753849995929,12.53996124,3814.8,3814.7,0.001]
[1753849996132,16.53296124,3814.8,3814.7,0.001]
[1753849996695,16.53196124,3814.8,3814.7,0.001]
[1753849997117,12.07216124,3814.8,3814.7,0.001]
[1753849997538,15.59976124,3814.8,3814.7,0.001]
[1753849997736,2.6213694,3814.8,3814.7,0.001]
[1753849997934,6.6133694,3814.8,3814.7,0.001]
[1753849998237,9.6133694,3814.8,3814.7,0.001]
[1753849999141,9.6143694,3814.8,3814.7,0.9181]
[1753849999931,9.6143694,3814.8,3814.7,0.4753]
[1753850000139,9.6143694,3814.8,3814.7,0.001]
[1753850000346,9.7455694,3814.8,3814.7,0.001]
[1753850001039,5.7525694,3814.8,3814.7,0.001]
[1753850001202,9.7455694,3814.8,3814.7,0.001]
[1753850001538,5.7525694,3814.8,3814.7,0.9181]
[1753850001838,9.7445694,3814.8,3814.7,0.9181]
[1753850002436,9.7435694,3814.8,3814.7,0.9181]
[1753850003355,7.1222,3814.8,3814.7,0.9181]
[1753850004622,9.7435694,3814.8,3814.7,0.9181]
[1753850005238,7.1222,3814.8,3814.7,0.9181]
[1753850006017,3.1312,3814.8,3814.7,0.9181]
[1753850006221,7.1222,3814.8,3814.7,0.9181]
[1753850006522,3.1312,3814.8,3814.7,0.9181]
[1753850006719,7.1212,3814.8,3814.7,0.9181]
[1753850008368,9.7425694,3814.8,3814.7,0.9181]
[1753850009269,9.7415694,3814.8,3814.7,0.9181]
[1753850009464,9.7415694,3814.8,3814.7,0.4753]
[1753850009654,9.7415694,3814.8,3814.7,0.001]
[1753850010383,5.7525694,3814.8,3814.7,0.001]
[1753850010573,9.7415694,3814.8,3814.7,0.001]
[1753850012682,10.1964694,3814.8,3814.7,0.001]
[1753850012898,10.6380694,3814.8,3814.7,0.001]
[1753850013392,12.27389137,3814.8,3814.7,0.001]